[Event "GrandPrix_30.05"]
[Site "Chess.com"]
[Date "2020.05.30"]
[Round "6"]
[White "Korchmar_Vasiliy"]
[Black "Kostya_Nikologorskiy"]
[Result "1-0"]
[WhiteElo "2119"]
[BlackElo "2178"]
[TimeControl "600+2"]
[EndTime "10:54:58 PDT"]
[Termination "Korchmar_Vasiliy won by resignation"]

1. d4 {[%clk 0:10:01.9]} 1... Nf6 {[%clk 0:10:00.1]} 2. c4 {[%clk 0:10:02.7]}
2... e6 {[%clk 0:09:48.7]} 3. g3 {[%clk 0:10:01.9]} 3... b6 {[%clk 0:09:41.2]}
4. Bg2 {[%clk 0:10:02]} 4... c6 {[%clk 0:09:41.2]} 5. Nf3 {[%clk 0:09:32.5]}
5... Bb4+ {[%clk 0:09:34.2]} 6. Nbd2 {[%clk 0:09:26.6]} 6... d5 {[%clk
0:09:27.4]} 7. O-O {[%clk 0:09:26.9]} 7... O-O {[%clk 0:09:28.1]} 8. Qc2 {[%clk
0:09:26.9]} 8... Ba6 {[%clk 0:09:17.5]} 9. Ne5 {[%clk 0:08:46.4]} 9... Nfd7
{[%clk 0:09:02.6]} 10. Ndf3 {[%clk 0:08:42.1]} 10... f6 {[%clk 0:08:50.8]} 11.
Nd3 {[%clk 0:08:20.7]} 11... Bd6 {[%clk 0:08:37.5]} 12. b3 {[%clk 0:08:21.6]}
12... b5 {[%clk 0:08:14.8]} 13. c5 {[%clk 0:06:43.9]} 13... Bc7 {[%clk
0:08:07.2]} 14. Nf4 {[%clk 0:06:12.8]} 14... Re8 {[%clk 0:07:54]} 15. e4 {[%clk
0:06:13.5]} 15... e5 {[%clk 0:07:05.5]} 16. dxe5 {[%clk 0:05:41]} 16... fxe5
{[%clk 0:07:04.8]} 17. exd5 {[%clk 0:05:04.4]} 17... exf4 {[%clk 0:07:03.7]} 18.
d6 {[%clk 0:05:05.4]} 18... Ba5 {[%clk 0:06:53]} 19. b4 {[%clk 0:05:02.7]} 19...
Bxb4 {[%clk 0:04:19.1]} 20. Qb3+ {[%clk 0:05:01.7]} 20... Kh8 {[%clk 0:04:19.8]}
21. Qxb4 {[%clk 0:05:02.9]} 21... Bb7 {[%clk 0:04:11.4]} 22. Bxf4 {[%clk
0:04:48.3]} 22... Na6 {[%clk 0:03:52.3]} 23. Qb2 {[%clk 0:02:19.1]} 23... Naxc5
{[%clk 0:03:39.4]} 24. Bg5 {[%clk 0:02:18.8]} 24... Qa5 {[%clk 0:03:10.7]} 25.
Be7 {[%clk 0:02:07.5]} 25... Na4 {[%clk 0:02:46.1]} 26. Qd4 {[%clk 0:02:00.8]}
26... c5 {[%clk 0:02:30.6]} 27. Qh4 {[%clk 0:02:00.9]} 27... Qb4 {[%clk
0:02:30.6]} 28. Qh3 {[%clk 0:01:52.7]} 28... Bc8 {[%clk 0:02:09.9]} 29. Qh5
{[%clk 0:01:25.3]} 29... g6 {[%clk 0:01:23]} 30. Qh6 {[%clk 0:01:25.9]} 1-0

[Event "GrandPrix_30.05"]
[Site "Chess.com"]
[Date "2020.05.30"]
[Round "6"]
[White "chansen64"]
[Black "abraham1982"]
[Result "1-0"]
[WhiteElo "2103"]
[BlackElo "2148"]
[TimeControl "600+2"]
[EndTime "10:55:03 PDT"]
[Termination "chansen64 won on time"]

1. d4 {[%clk 0:10:01.9]} 1... Nf6 {[%clk 0:09:53.1]} 2. c4 {[%clk 0:10:00.2]}
2... e6 {[%clk 0:09:51.3]} 3. Nf3 {[%clk 0:09:55.3]} 3... b6 {[%clk 0:09:47]} 4.
g3 {[%clk 0:09:52.7]} 4... Ba6 {[%clk 0:09:40.7]} 5. Qa4 {[%clk 0:09:50.9]} 5...
c5 {[%clk 0:09:35.1]} 6. dxc5 {[%clk 0:09:48.9]} 6... Bxc5 {[%clk 0:09:31.2]} 7.
Bg2 {[%clk 0:09:49.1]} 7... Bb7 {[%clk 0:09:30.8]} 8. O-O {[%clk 0:09:48.8]}
8... O-O {[%clk 0:09:30.9]} 9. Nc3 {[%clk 0:09:48.8]} 9... h6 {[%clk 0:09:21.7]}
10. Rd1 {[%clk 0:09:47.8]} 10... Qe7 {[%clk 0:09:04.5]} 11. Qc2 {[%clk
0:09:15.7]} 11... d5 {[%clk 0:08:42.5]} 12. cxd5 {[%clk 0:09:08.1]} 12... Nxd5
{[%clk 0:08:28.1]} 13. Nxd5 {[%clk 0:08:41]} 13... Bxd5 {[%clk 0:08:19.4]} 14.
a3 {[%clk 0:08:10.3]} 14... a5 {[%clk 0:08:01.2]} 15. e4 {[%clk 0:08:01.4]}
15... Bb7 {[%clk 0:07:56]} 16. Bd2 {[%clk 0:07:52.4]} 16... Nc6 {[%clk
0:07:53.5]} 17. Bc3 {[%clk 0:07:49.8]} 17... Rac8 {[%clk 0:07:46.4]} 18. Qe2
{[%clk 0:07:42.9]} 18... e5 {[%clk 0:07:32.7]} 19. Rd2 {[%clk 0:06:56]} 19...
Ra8 {[%clk 0:07:21.2]} 20. Nh4 {[%clk 0:06:36.6]} 20... g6 {[%clk 0:06:52.7]}
21. Rad1 {[%clk 0:05:49.7]} 21... Nd4 {[%clk 0:05:29.9]} 22. Bxd4 {[%clk
0:05:42.5]} 22... exd4 {[%clk 0:05:25.2]} 23. e5 {[%clk 0:05:08.6]} 23... Bxg2
{[%clk 0:04:24]} 24. Nxg2 {[%clk 0:04:49.6]} 24... Rfe8 {[%clk 0:04:14.4]} 25.
Re1 {[%clk 0:04:47]} 25... Rad8 {[%clk 0:03:56.7]} 26. Nf4 {[%clk 0:04:45.6]}
26... Kg7 {[%clk 0:03:48]} 27. h4 {[%clk 0:04:33.8]} 27... Qc7 {[%clk
0:03:41.4]} 28. Nd3 {[%clk 0:04:10.7]} 28... a4 {[%clk 0:03:31.2]} 29. h5 {[%clk
0:03:47.5]} 29... Qc6 {[%clk 0:03:27.8]} 30. hxg6 {[%clk 0:03:37.7]} 30... Qxg6
{[%clk 0:03:24.8]} 31. Qf3 {[%clk 0:03:22.6]} 31... Qg5 {[%clk 0:03:11.1]} 32.
Rde2 {[%clk 0:03:15.3]} 32... Re6 {[%clk 0:02:56.4]} 33. Re4 {[%clk 0:03:03.4]}
33... f5 {[%clk 0:02:16]} 34. Rh4 {[%clk 0:02:19.8]} 34... Rf8 {[%clk
0:01:29.3]} 35. Nf4 {[%clk 0:02:11.3]} 1-0

[Event "GrandPrix_30.05"]
[Site "Chess.com"]
[Date "2020.05.30"]
[Round "6"]
[White "Zakaryan_David"]
[Black "EvgenyPigusov"]
[Result "1/2-1/2"]
[WhiteElo "1729"]
[BlackElo "2285"]
[TimeControl "600+2"]
[EndTime "10:55:18 PDT"]
[Termination "Game drawn by repetition"]

1. e4 {[%clk 0:09:25.5]} 1... c5 {[%clk 0:09:58.5]} 2. Nc3 {[%clk 0:09:07.6]}
2... Nc6 {[%clk 0:09:58]} 3. Nf3 {[%clk 0:09:05.2]} 3... g6 {[%clk 0:09:58.1]}
4. d4 {[%clk 0:09:04.7]} 4... cxd4 {[%clk 0:09:58]} 5. Nxd4 {[%clk 0:09:06.6]}
5... Bg7 {[%clk 0:09:58.8]} 6. Be3 {[%clk 0:09:06.6]} 6... Nf6 {[%clk
0:09:58.9]} 7. Bc4 {[%clk 0:09:05.8]} 7... O-O {[%clk 0:09:58.8]} 8. Bb3 {[%clk
0:09:05.9]} 8... a5 {[%clk 0:09:59]} 9. a4 {[%clk 0:08:53.1]} 9... Ng4 {[%clk
0:09:57.4]} 10. Qxg4 {[%clk 0:08:02.5]} 10... Nxd4 {[%clk 0:09:56.2]} 11. Bxd4
{[%clk 0:07:56.2]} 11... Bxd4 {[%clk 0:09:55.4]} 12. Qg3 {[%clk 0:07:55.9]}
12... d6 {[%clk 0:08:51.1]} 13. O-O-O {[%clk 0:07:55.2]} 13... Bxc3 {[%clk
0:07:52.6]} 14. Qxc3 {[%clk 0:07:52.9]} 14... Qb6 {[%clk 0:07:53.1]} 15. Qd4
{[%clk 0:07:43]} 15... Qc7 {[%clk 0:07:35.1]} 16. h4 {[%clk 0:07:39.3]} 16...
Be6 {[%clk 0:07:31.5]} 17. Bxe6 {[%clk 0:07:30.5]} 17... fxe6 {[%clk 0:07:32.1]}
18. h5 {[%clk 0:07:16.4]} 18... Rf6 {[%clk 0:07:14.3]} 19. hxg6 {[%clk
0:06:57.7]} 19... Rxg6 {[%clk 0:07:14]} 20. Rd3 {[%clk 0:06:47.2]} 20... Rc8
{[%clk 0:06:37.3]} 21. Rc3 {[%clk 0:06:45.6]} 21... Qd7 {[%clk 0:06:26.7]} 22.
Rxc8+ {[%clk 0:06:45.6]} 22... Qxc8 {[%clk 0:06:27.5]} 23. e5 {[%clk 0:06:45.8]}
23... Qf8 {[%clk 0:04:44]} 24. g3 {[%clk 0:05:15]} 24... d5 {[%clk 0:04:07]} 25.
b3 {[%clk 0:05:07.4]} 25... Qf5 {[%clk 0:03:37.4]} 26. Rh4 {[%clk 0:04:40.4]}
26... Rg5 {[%clk 0:03:22.5]} 27. Qc5 {[%clk 0:04:27.8]} 27... Qxe5 {[%clk
0:02:43.8]} 28. Qxe7 {[%clk 0:04:17.9]} 28... h5 {[%clk 0:02:40.6]} 29. Qd8+
{[%clk 0:03:13.7]} 29... Kg7 {[%clk 0:02:26.6]} 30. Qxa5 {[%clk 0:01:29.6]}
30... Qa1+ {[%clk 0:02:26.3]} 31. Kd2 {[%clk 0:01:28.5]} 31... Re5 {[%clk
0:02:27.3]} 32. Qc7+ {[%clk 0:01:25.1]} 32... Kg6 {[%clk 0:02:18.9]} 33. Rf4
{[%clk 0:01:14.9]} 33... Rf5 {[%clk 0:01:27.5]} 34. Rxf5 {[%clk 0:01:10.7]}
34... Qd4+ {[%clk 0:01:26.9]} 35. Kc1 {[%clk 0:01:07.9]} 35... Qa1+ {[%clk
0:01:27.3]} 36. Kd2 {[%clk 0:01:08.1]} 36... Qd4+ {[%clk 0:01:27.8]} 37. Ke2
{[%clk 0:01:08.2]} 37... Qe4+ {[%clk 0:01:28.7]} 38. Kf1 {[%clk 0:01:08.4]}
38... Qh1+ {[%clk 0:01:28.7]} 39. Ke2 {[%clk 0:01:08.2]} 39... Qe4+ {[%clk
0:01:29.5]} 40. Kd1 {[%clk 0:01:04.9]} 40... Qd4+ {[%clk 0:01:30.3]} 41. Ke1
{[%clk 0:01:00.9]} 41... Qe4+ {[%clk 0:01:30.4]} 42. Kd2 {[%clk 0:00:55.2]}
42... Qd4+ {[%clk 0:01:31.1]} 1/2-1/2

[Event "GrandPrix_30.05"]
[Site "Chess.com"]
[Date "2020.05.30"]
[Round "6"]
[White "Mesropov_Konstantin"]
[Black "FCLitras"]
[Result "0-1"]
[WhiteElo "2277"]
[BlackElo "2213"]
[TimeControl "600+2"]
[EndTime "10:55:21 PDT"]
[Termination "FCLitras won by resignation"]

1. c4 {[%clk 0:10:01.9]} 1... e6 {[%clk 0:09:55.6]} 2. Nf3 {[%clk 0:10:02]} 2...
Nf6 {[%clk 0:09:55.5]} 3. Nc3 {[%clk 0:10:01.7]} 3... d5 {[%clk 0:09:56.1]} 4.
e3 {[%clk 0:10:02.7]} 4... Be7 {[%clk 0:09:56.7]} 5. b3 {[%clk 0:10:02.9]} 5...
O-O {[%clk 0:09:57.6]} 6. Bb2 {[%clk 0:10:02.9]} 6... dxc4 {[%clk 0:09:57.8]} 7.
bxc4 {[%clk 0:09:53.1]} 7... c5 {[%clk 0:09:57.9]} 8. Qc2 {[%clk 0:09:46.6]}
8... Nc6 {[%clk 0:09:53.8]} 9. a3 {[%clk 0:09:47.6]} 9... b6 {[%clk 0:09:54.4]}
10. Be2 {[%clk 0:07:36.1]} 10... Bb7 {[%clk 0:09:54.2]} 11. O-O {[%clk
0:07:36.9]} 11... Qd7 {[%clk 0:09:37.6]} 12. Rad1 {[%clk 0:07:19.3]} 12... Rfd8
{[%clk 0:09:38.3]} 13. Ng5 {[%clk 0:07:01.1]} 13... h6 {[%clk 0:09:23.1]} 14.
Nge4 {[%clk 0:06:55.6]} 14... Ne5 {[%clk 0:09:18.8]} 15. d4 {[%clk 0:06:34.4]}
15... cxd4 {[%clk 0:09:14]} 16. exd4 {[%clk 0:06:35.3]} 16... Ng6 {[%clk
0:09:04.3]} 17. d5 {[%clk 0:06:25.4]} 17... exd5 {[%clk 0:08:59.4]} 18. Nxf6+
{[%clk 0:05:52.4]} 18... Bxf6 {[%clk 0:08:57.8]} 19. Nxd5 {[%clk 0:05:53.8]}
19... Bxb2 {[%clk 0:08:52.1]} 20. Qxb2 {[%clk 0:05:47.9]} 20... Bxd5 {[%clk
0:07:50.9]} 21. cxd5 {[%clk 0:05:45]} 21... Qd6 {[%clk 0:07:51.5]} 22. Bb5
{[%clk 0:05:35.2]} 22... Rac8 {[%clk 0:07:51.4]} 23. g3 {[%clk 0:05:25]} 23...
Rc5 {[%clk 0:07:50.7]} 24. Bc6 {[%clk 0:05:18.7]} 24... Ne7 {[%clk 0:07:09.6]}
25. Qb3 {[%clk 0:04:56.2]} 25... Qc7 {[%clk 0:07:04.2]} 26. Rc1 {[%clk
0:04:28.7]} 26... Nxc6 {[%clk 0:07:00.7]} 27. Rxc5 {[%clk 0:04:25.4]} 27... bxc5
{[%clk 0:07:01.7]} 28. dxc6 {[%clk 0:04:26.4]} 28... Qxc6 {[%clk 0:07:02.9]} 29.
Rc1 {[%clk 0:04:19.5]} 29... Rd2 {[%clk 0:05:29.7]} 30. Qb8+ {[%clk 0:03:39.8]}
30... Kh7 {[%clk 0:05:30.4]} 31. Qxa7 {[%clk 0:03:41]} 31... Qd5 {[%clk
0:05:25.6]} 32. Qa4 {[%clk 0:02:18.5]} 32... c4 {[%clk 0:05:19.3]} 33. h4 {[%clk
0:02:07.7]} 33... Qf5 {[%clk 0:04:58.6]} 34. Qa7 {[%clk 0:01:51.9]} 34... Qd3
{[%clk 0:03:28.5]} 35. Kg2 {[%clk 0:00:59.7]} 35... Qd5+ {[%clk 0:03:13.3]} 36.
Kh3 {[%clk 0:00:37]} 36... Qf3 {[%clk 0:02:29.3]} 37. Qe3 {[%clk 0:00:30.7]}
37... Qf5+ {[%clk 0:02:15]} 38. Kg2 {[%clk 0:00:29.9]} 38... Rd3 {[%clk
0:02:12.2]} 39. Qf4 {[%clk 0:00:19.6]} 39... Qd5+ {[%clk 0:02:11.5]} 40. Kh2
{[%clk 0:00:20.5]} 40... c3 {[%clk 0:02:12.6]} 41. a4 {[%clk 0:00:10.4]} 41...
Rf3 {[%clk 0:02:10.8]} 0-1

[Event "GrandPrix_30.05"]
[Site "Chess.com"]
[Date "2020.05.30"]
[Round "6"]
[White "madamDD"]
[Black "SuperFineHipster"]
[Result "0-1"]
[WhiteElo "2307"]
[BlackElo "2221"]
[TimeControl "600+2"]
[EndTime "10:55:24 PDT"]
[Termination "SuperFineHipster won by checkmate"]

1. e4 {[%clk 0:10:01.9]} 1... c5 {[%clk 0:09:56.8]} 2. Nc3 {[%clk 0:10:01.7]}
2... Nc6 {[%clk 0:09:47.9]} 3. Bb5 {[%clk 0:10:01.2]} 3... Nd4 {[%clk
0:09:40.6]} 4. Nf3 {[%clk 0:10:01.4]} 4... Nxb5 {[%clk 0:09:35.2]} 5. Nxb5
{[%clk 0:10:01.5]} 5... d6 {[%clk 0:09:30.4]} 6. d4 {[%clk 0:09:59.2]} 6... cxd4
{[%clk 0:09:23.8]} 7. Qxd4 {[%clk 0:09:59.3]} 7... Bd7 {[%clk 0:09:11.2]} 8. Nc3
{[%clk 0:09:49.9]} 8... e5 {[%clk 0:09:02.1]} 9. Qd3 {[%clk 0:09:44.4]} 9... h6
{[%clk 0:09:03.1]} 10. Nd2 {[%clk 0:09:38]} 10... Nf6 {[%clk 0:08:53.9]} 11. Nc4
{[%clk 0:09:33.5]} 11... Be6 {[%clk 0:08:36.2]} 12. Ne3 {[%clk 0:09:27.6]} 12...
Be7 {[%clk 0:08:29.1]} 13. O-O {[%clk 0:09:24.5]} 13... O-O {[%clk 0:08:29.2]}
14. Rd1 {[%clk 0:08:38.5]} 14... Rc8 {[%clk 0:08:23.4]} 15. f3 {[%clk
0:08:23.9]} 15... Qb6 {[%clk 0:07:50.3]} 16. Kh1 {[%clk 0:08:07.7]} 16... Rfd8
{[%clk 0:07:44]} 17. a4 {[%clk 0:07:43.6]} 17... Qc6 {[%clk 0:07:24]} 18. Nb5
{[%clk 0:07:13]} 18... Qc5 {[%clk 0:07:08.8]} 19. b3 {[%clk 0:06:30.1]} 19... a6
{[%clk 0:07:04.6]} 20. Ba3 {[%clk 0:06:28.9]} 20... Qb6 {[%clk 0:06:51.7]} 21.
Nc3 {[%clk 0:06:05.5]} 21... Rd7 {[%clk 0:05:59.1]} 22. Rd2 {[%clk 0:04:32.1]}
22... Qd4 {[%clk 0:02:36.1]} 23. Bb2 {[%clk 0:04:17.3]} 23... Rdc7 {[%clk
0:02:36.7]} 24. Qe2 {[%clk 0:03:10.3]} 24... Qb4 {[%clk 0:02:14.4]} 25. Na2
{[%clk 0:02:36.8]} 25... Qb6 {[%clk 0:02:11.5]} 26. Nc1 {[%clk 0:02:22.4]} 26...
Nh5 {[%clk 0:02:03.6]} 27. g3 {[%clk 0:02:13.7]} 27... Bg5 {[%clk 0:02:01.6]}
28. f4 {[%clk 0:01:21.4]} 28... exf4 {[%clk 0:01:49.3]} 29. Nc4 {[%clk
0:00:40.2]} 29... Bxc4 {[%clk 0:01:44.6]} 30. Qxh5 {[%clk 0:00:39.1]} 30... fxg3
{[%clk 0:01:38.9]} 31. Rg2 {[%clk 0:00:39.7]} 31... Bf1 {[%clk 0:01:23]} 32.
Rxg3 {[%clk 0:00:37.9]} 32... Rxc2 {[%clk 0:01:24.5]} 33. Bxg7 {[%clk
0:00:16.7]} 33... Qf2 {[%clk 0:01:23.3]} 34. Bxh6 {[%clk 0:00:12.5]} 34... Bg2+
{[%clk 0:01:23.6]} 35. Rxg2 {[%clk 0:00:12.2]} 35... Qxg2# {[%clk 0:01:25.1]}
0-1

[Event "GrandPrix_30.05"]
[Site "Chess.com"]
[Date "2020.05.30"]
[Round "6"]
[White "GM_LOADING"]
[Black "SavelijTartakover"]
[Result "0-1"]
[WhiteElo "2329"]
[BlackElo "2497"]
[TimeControl "600+2"]
[EndTime "10:55:25 PDT"]
[Termination "SavelijTartakover won by resignation"]

1. e4 {[%clk 0:10:01.9]} 1... e6 {[%clk 0:09:58.7]} 2. d4 {[%clk 0:10:02.4]}
2... d5 {[%clk 0:09:59.9]} 3. Nc3 {[%clk 0:10:04]} 3... Bb4 {[%clk 0:10:00.4]}
4. Ne2 {[%clk 0:10:04.4]} 4... Nc6 {[%clk 0:09:59.2]} 5. a3 {[%clk 0:10:04.3]}
5... Ba5 {[%clk 0:09:59.8]} 6. e5 {[%clk 0:10:01.5]} 6... f6 {[%clk 0:09:57.8]}
7. Nf4 {[%clk 0:10:02.1]} 7... fxe5 {[%clk 0:09:54]} 8. Qh5+ {[%clk 0:09:45.2]}
8... g6 {[%clk 0:09:53.5]} 9. Nxg6 {[%clk 0:09:08.7]} 9... Nf6 {[%clk
0:09:53.8]} 10. Qh4 {[%clk 0:08:17]} 10... exd4 {[%clk 0:09:51.4]} 11. Nxh8
{[%clk 0:07:38.1]} 11... dxc3 {[%clk 0:09:51.3]} 12. b4 {[%clk 0:07:31.5]} 12...
Ke7 {[%clk 0:07:13.9]} 13. bxa5 {[%clk 0:05:33.6]} 13... Qxh8 {[%clk 0:07:13.7]}
14. Bb5 {[%clk 0:05:27.6]} 14... Bd7 {[%clk 0:07:08.4]} 15. O-O {[%clk
0:04:46.8]} 15... Rg8 {[%clk 0:06:59.4]} 16. f3 {[%clk 0:02:42.9]} 16... Qg7
{[%clk 0:06:41.9]} 17. Qf2 {[%clk 0:02:23.3]} 17... d4 {[%clk 0:05:56.8]} 18.
Bf4 {[%clk 0:01:40.5]} 18... Nd5 {[%clk 0:05:10.5]} 19. Bg3 {[%clk 0:01:33.2]}
19... Nxa5 {[%clk 0:05:07.1]} 20. Bd3 {[%clk 0:00:37.4]} 20... Kd8 {[%clk
0:04:38.4]} 21. Rfe1 {[%clk 0:00:32.8]} 21... Nc6 {[%clk 0:04:38.6]} 22. Be4
{[%clk 0:00:26]} 22... Kc8 {[%clk 0:04:34.1]} 23. Rad1 {[%clk 0:00:20.7]} 23...
h5 {[%clk 0:04:07.5]} 24. Kh1 {[%clk 0:00:08.3]} 24... b6 {[%clk 0:03:40.5]} 25.
Bxd5 {[%clk 0:00:05.7]} 25... exd5 {[%clk 0:03:40.3]} 26. Re2 {[%clk 0:00:07.1]}
26... Kb7 {[%clk 0:03:35.8]} 27. Rde1 {[%clk 0:00:08.4]} 27... Qg6 {[%clk
0:03:27.2]} 28. Be5 {[%clk 0:00:07.5]} 28... d3 {[%clk 0:03:10.3]} 29. cxd3
{[%clk 0:00:07.1]} 29... Qxd3 {[%clk 0:02:52.2]} 30. Re3 {[%clk 0:00:03.9]}
30... Nxe5 {[%clk 0:02:52.8]} 31. Rxe5 {[%clk 0:00:05.8]} 31... Ba4 {[%clk
0:02:34.8]} 32. R5e3 {[%clk 0:00:03.9]} 32... Qc4 {[%clk 0:02:35]} 33. Re7
{[%clk 0:00:02.7]} 33... d4 {[%clk 0:02:27.8]} 34. Rc1 {[%clk 0:00:02.5]} 34...
d3 {[%clk 0:02:23.6]} 35. Re4 {[%clk 0:00:04.1]} 35... d2 {[%clk 0:02:07.8]} 36.
Rg1 {[%clk 0:00:05.2]} 36... Qd5 {[%clk 0:01:52.5]} 37. Rd4 {[%clk 0:00:04.6]}
37... Qc5 {[%clk 0:01:53.1]} 38. Rf1 {[%clk 0:00:04.7]} 0-1

[Event "GrandPrix_30.05"]
[Site "Chess.com"]
[Date "2020.05.30"]
[Round "6"]
[White "Nitzan_Steinberg"]
[Black "Supernotar"]
[Result "1/2-1/2"]
[WhiteElo "2414"]
[BlackElo "2225"]
[TimeControl "600+2"]
[EndTime "10:55:26 PDT"]
[Termination "Game drawn by agreement"]

1. e4 {[%clk 0:10:01.9]} 1... c6 {[%clk 0:09:57.8]} 2. d4 {[%clk 0:10:01.4]}
2... d5 {[%clk 0:09:58.9]} 3. e5 {[%clk 0:10:02.8]} 3... Bf5 {[%clk 0:09:59.3]}
4. h4 {[%clk 0:10:04.3]} 4... h5 {[%clk 0:09:59.6]} 5. Bd3 {[%clk 0:10:05.1]}
5... Bxd3 {[%clk 0:09:46.3]} 6. Qxd3 {[%clk 0:10:07]} 6... e6 {[%clk 0:09:47]}
7. Bg5 {[%clk 0:10:06]} 7... Qa5+ {[%clk 0:09:36.4]} 8. Nd2 {[%clk 0:10:06.2]}
8... Qa6 {[%clk 0:09:35.4]} 9. c4 {[%clk 0:10:05.5]} 9... Bb4 {[%clk 0:09:35.1]}
10. b3 {[%clk 0:10:01.1]} 10... Ne7 {[%clk 0:09:25.6]} 11. Nf3 {[%clk
0:09:49.9]} 11... Nf5 {[%clk 0:09:17.6]} 12. O-O {[%clk 0:09:24.4]} 12... O-O
{[%clk 0:09:00.9]} 13. Rfd1 {[%clk 0:08:59.2]} 13... Bxd2 {[%clk 0:08:47.6]} 14.
Nxd2 {[%clk 0:08:31.2]} 14... Nd7 {[%clk 0:08:36.6]} 15. Nf1 {[%clk 0:08:10.2]}
15... dxc4 {[%clk 0:08:18.7]} 16. bxc4 {[%clk 0:08:04]} 16... c5 {[%clk
0:07:51.5]} 17. dxc5 {[%clk 0:07:08.6]} 17... Nxc5 {[%clk 0:06:49]} 18. Qe2
{[%clk 0:07:08.6]} 18... g6 {[%clk 0:06:34.1]} 19. Bf6 {[%clk 0:05:58.7]} 19...
Qc6 {[%clk 0:06:13.1]} 20. Ng3 {[%clk 0:05:05.4]} 20... Nxg3 {[%clk 0:05:30.5]}
21. fxg3 {[%clk 0:05:03.8]} 21... Ne4 {[%clk 0:04:27.4]} 22. Kh2 {[%clk
0:04:20.4]} 22... Nxf6 {[%clk 0:04:06.1]} 23. exf6 {[%clk 0:04:22.3]} 23... Rfd8
{[%clk 0:03:50.1]} 24. g4 {[%clk 0:03:57.2]} 24... Qc7+ {[%clk 0:03:05.3]} 25.
g3 {[%clk 0:00:39.6]} 25... hxg4 {[%clk 0:02:58.2]} 26. Qxg4 {[%clk 0:00:39.1]}
26... Qe5 {[%clk 0:01:31.6]} 27. Qf3 {[%clk 0:00:17.8]} 1/2-1/2

[Event "GrandPrix_30.05"]
[Site "Chess.com"]
[Date "2020.05.30"]
[Round "6"]
[White "MasterSonnevanck2"]
[Black "caspiwins"]
[Result "0-1"]
[WhiteElo "2144"]
[BlackElo "2302"]
[TimeControl "600+2"]
[EndTime "10:55:27 PDT"]
[Termination "caspiwins won by checkmate"]

1. d4 {[%clk 0:10:01.9]} 1... f5 {[%clk 0:09:59]} 2. g3 {[%clk 0:10:01]} 2...
Nf6 {[%clk 0:09:59.5]} 3. Bg2 {[%clk 0:10:01.8]} 3... g6 {[%clk 0:10:01]} 4. Nf3
{[%clk 0:10:02.4]} 4... Bg7 {[%clk 0:10:02.5]} 5. O-O {[%clk 0:10:03.6]} 5...
O-O {[%clk 0:10:04]} 6. c4 {[%clk 0:10:04.3]} 6... d6 {[%clk 0:10:05.5]} 7. Nc3
{[%clk 0:10:04.5]} 7... c6 {[%clk 0:10:07]} 8. d5 {[%clk 0:10:03.8]} 8... e5
{[%clk 0:10:07.7]} 9. e4 {[%clk 0:10:01.7]} 9... cxd5 {[%clk 0:09:50.7]} 10.
cxd5 {[%clk 0:09:59.4]} 10... Na6 {[%clk 0:09:51.7]} 11. exf5 {[%clk 0:09:37.6]}
11... gxf5 {[%clk 0:09:50.2]} 12. Ng5 {[%clk 0:09:11.8]} 12... Nc7 {[%clk
0:09:45.8]} 13. Qb3 {[%clk 0:09:06.2]} 13... Qe7 {[%clk 0:09:42.5]} 14. Bd2
{[%clk 0:08:57.8]} 14... h6 {[%clk 0:09:38.4]} 15. Nf3 {[%clk 0:08:55.1]} 15...
b6 {[%clk 0:09:37.4]} 16. Nh4 {[%clk 0:08:45.3]} 16... Qf7 {[%clk 0:09:32.8]}
17. a4 {[%clk 0:08:39.9]} 17... Na6 {[%clk 0:09:24.8]} 18. Nb5 {[%clk
0:07:56.8]} 18... Nc5 {[%clk 0:09:20.2]} 19. Qa3 {[%clk 0:07:36.9]} 19... Rd8
{[%clk 0:09:11]} 20. Rac1 {[%clk 0:06:13.2]} 20... a6 {[%clk 0:08:50.3]} 21. Nc3
{[%clk 0:06:06.3]} 21... e4 {[%clk 0:08:40.7]} 22. Be3 {[%clk 0:05:50.5]} 22...
Nxd5 {[%clk 0:08:36.5]} 23. Nxd5 {[%clk 0:05:35.8]} 23... Qxd5 {[%clk
0:08:38.4]} 24. Ng6 {[%clk 0:05:27.8]} 24... Qf7 {[%clk 0:08:18.8]} 25. Nf4
{[%clk 0:05:26.9]} 25... a5 {[%clk 0:08:19.2]} 26. Rfd1 {[%clk 0:05:19.4]} 26...
Bb7 {[%clk 0:08:19.9]} 27. Bf1 {[%clk 0:05:08.4]} 27... Kh7 {[%clk 0:07:40.5]}
28. b4 {[%clk 0:05:00]} 28... axb4 {[%clk 0:07:36.8]} 29. Qxb4 {[%clk
0:05:00.2]} 29... d5 {[%clk 0:07:14.3]} 30. Bxc5 {[%clk 0:04:23.2]} 30... bxc5
{[%clk 0:07:15]} 31. Qxc5 {[%clk 0:04:19.2]} 31... Rxa4 {[%clk 0:06:30]} 32. Qb6
{[%clk 0:03:37]} 32... Rc8 {[%clk 0:03:19.6]} 33. Rxc8 {[%clk 0:03:24.8]} 33...
Bxc8 {[%clk 0:03:21.5]} 34. Nxd5 {[%clk 0:03:13.9]} 34... Be6 {[%clk 0:02:29.5]}
35. Nf4 {[%clk 0:03:07.1]} 35... Bb3 {[%clk 0:02:23.1]} 36. Rb1 {[%clk
0:02:05.1]} 36... Ba2 {[%clk 0:02:13.8]} 37. Rd1 {[%clk 0:01:56.7]} 37... Bb3
{[%clk 0:02:14]} 38. Rb1 {[%clk 0:01:56.9]} 38... Bc2 {[%clk 0:01:45]} 39. Rb4
{[%clk 0:01:35.5]} 39... Ra1 {[%clk 0:01:39.1]} 40. Qc6 {[%clk 0:00:51.9]} 40...
Bd3 {[%clk 0:01:39.1]} 41. Nxd3 {[%clk 0:00:52.5]} 41... exd3 {[%clk 0:01:41]}
42. Rb5 {[%clk 0:00:49.7]} 42... d2 {[%clk 0:01:33.2]} 43. Rd5 {[%clk
0:00:51.6]} 43... d1=Q {[%clk 0:01:29.6]} 44. Rd2 {[%clk 0:00:53.5]} 44... Qxf1#
{[%clk 0:01:29.2]} 0-1